Workbook

Sheet 施甸分公司二季度
A1: 保山电力施甸分公司2025年二季度配电网接入能力公示表
A2: 序号 | B2: 设备名称（准确、完整描述配变名称） | C2: 电压等级(kV) | D2: 季度平均负载率（%） | E2: 最大负载率（%） | F2: 负载情况（轻载、重载、过载） | G2: 可开放容量(kVA) | H2: 是否接入受限（是/否） | I2: 覆盖区域（以“县区-乡镇或街道办-村委会或社区-村或小区”的地址层级进行公示）
A3: 1 | B3: 下寨田台变 | C3: 10kV | D3: 3.89 | E3: 27.77 | F3: 轻载 | G3: =(K3-K3*D3/100)*0.9 -> 43.25 | H3: 否 | I3: 酒房乡后寨村 | K3: 50
A4: 2 | B4: 领岗田台变 | C4: 10kV | D4: 4.43 | E4: 21.41 | F4: 轻载 | G4: 68.81 | H4: 否 | I4: 酒房乡后寨村 | K4: 80
A5: 3 | B5: 下马安山台变 | C5: 10kV | D5: 4.66 | E5: 30.88 | F5: 轻载 | G5: 85.81 | H5: 否 | I5: 酒房乡后寨村 | K5: 100
A6: 4 | B6: 施甸县彝朗村镇开发 | C6: 10kV | D6: 1.7 | E6: 27 | F6: 轻载 | G6: 70.78 | H6: 否 | I6: 摆榔乡摆榔村 | K6: 80
A7: 5 | B7: 大马厂台变 | C7: 10kV | D7: 21.02 | E7: 38.18 | F7: 轻载 | G7: 88.85 | H7: 否 | I7: 酒房乡雷打树村 | K7: 125
A8: 6 | B8: 小姜寨台变 | C8: 10kV | D8: 2.15 | E8: 16.55 | F8: 轻载 | G8: 88.07 | H8: 否 | I8: 木老元乡哈寨村 | K8: 100
A9: 7 | B9: 金甸湖岸3#箱变 | C9: 10kV | D9: 3.94 | E9: 13.27 | F9: 轻载 | G9: 691.63 | H9: 否 | I9: 甸阳镇文武社区 | K9: 800
A10: 8 | B10: 索村台变 | C10: 10kV | D10: 10.92 | E10: 64.04 | F10: 轻载 | G10: 252.54 | H10: 否 | I10: 甸阳镇张家村 | K10: 315
A11: 9 | B11: 林3#台变 | C11: 10kV | D11: 7.3 | E11: 30.34 | F11: 轻载 | G11: 83.43 | H11: 否 | I11: 太平镇太平村 | K11: 100
A12: 10 | B12: 蒿坝1#台变 | C12: 10kV | D12: 7.72 | E12: 31.88 | F12: 轻载 | G12: 166.10 | H12: 否 | I12: 太平镇莽林村 | K12: 200
A13: 11 | B13: 电信局门口2#台变 | C13: 10kV | D13: 10.5 | E13: 24.07 | F13: 轻载 | G13: 322.20 | H13: 否 | I13: 甸阳镇文武社区 | K13: 400
A14: 12 | B14: 家坡台变 | C14: 10kV | D14: 17.68 | E14: 72.74 | F14: 轻载 | G14: 59.27 | H14: 否 | I14: 太平镇田头村 | K14: 80
A15: 13 | B15: 塘山台变 | C15: 10kV | D15: 12.58 | E15: 48.99 | F15: 轻载 | G15: 125.88 | H15: 否 | I15: 太平镇东蚌村 | K15: 160
A16: 14 | B16: 家田2#台变 | C16: 10kV | D16: 6.64 | E16: 22.79 | F16: 轻载 | G16: 168.05 | H16: 否 | I16: 等子村绿水村 | K16: 200
A17: 15 | B17: 大竹蓬1#台变 | C17: 10kV | D17: 11.79 | E17: 46.38 | F17: 轻载 | G17: 127.02 | H17: 否 | I17: 甸阳镇大竹篷村 | K17: 160
A18: 16 | B18: 回子龙台变 | C18: 10kV | D18: 6.63 | E18: 39.79 | F18: 轻载 | G18: 42.02 | H18: 否 | I18: 仁和镇杨家山村 | K18: 50
A19: 17 | B19: 大松林台变 | C19: 10kV | D19: 2.66 | E19: 13.95 | F19: 轻载 | G19: 109.51 | H19: 否 | I19: 仁和镇菠萝登村 | K19: 125
A20: 18 | B20: 大梨树台变 | C20: 10kV | D20: 6.59 | E20: 28.4 | F20: 轻载 | G20: 105.09 | H20: 否 | I20: 仁和镇菠萝登村 | K20: 125
A21: 19 | B21: 马水坡台变 | C21: 10kV | D21: 3.71 | E21: 14.59 | F21: 轻载 | G21: 216.65 | H21: 否 | I21: 仁和镇杨家山村 | K21: 250
A22: 20 | B22: 大明邑安置房台变 | C22: 10kV | D22: 9.97 | E22: 31.37 | F22: 轻载 | G22: 202.57 | H22: 否 | I22: 仁和镇菠萝登村 | K22: 250
A23: 21 | B23: 架杆台变 | C23: 10kV | D23: 2.13 | E23: 14.78 | F23: 轻载 | G23: 176.17 | H23: 否 | I23: 仁和镇交邑村 | K23: 200
A24: 22 | B24: 下山后台变 | C24: 10kV | D24: 2.75 | E24: 55.89 | F24: 轻载 | G24: 140.04 | H24: 否 | I24: 仁和镇交邑村 | K24: 160
A25: 23 | B25: 交邑二社台变 | C25: 10kV | D25: 5.51 | E25: 16.37 | F25: 轻载 | G25: 136.07 | H25: 否 | I25: 仁和镇交邑村 | K25: 160
A26: 24 | B26: 老关庙台变 | C26: 10kV | D26: 10.92 | E26: 29.37 | F26: 轻载 | G26: 252.54 | H26: 否 | I26: 仁和镇复兴村 | K26: 315
A27: 25 | B27: 大树脚台变 | C27: 10kV | D27: 8.66 | E27: 23.35 | F27: 轻载 | G27: 258.95 | H27: 否 | I27: 仁和镇复兴村 | K27: 315
A28: 26 | B28: 热水塘北2#台变 | C28: 10kV | D28: 8.33 | E28: 21.77 | F28: 轻载 | G28: 259.88 | H28: 否 | I28: 仁和镇热水塘村 | K28: 315
A29: 27 | B29: 热水塘北1#台变 | C29: 10kV | D29: 9.19 | E29: 30.86 | F29: 轻载 | G29: 204.32 | H29: 否 | I29: 仁和镇热水塘村 | K29: 250
A30: 28 | B30: 热水塘南2#台变 | C30: 10kV | D30: 5.75 | E30: 21.75 | F30: 轻载 | G30: 267.20 | H30: 否 | I30: 仁和镇热水塘村 | K30: 315
A31: 29 | B31: 热水塘南1#台变 | C31: 10kV | D31: 11.87 | E31: 33.23 | F31: 轻载 | G31: 249.85 | H31: 否 | I31: 仁和镇热水塘村 | K31: 315
A32: 30 | B32: 小山脚台变 | C32: 10kV | D32: 11.35 | E32: 34.36 | F32: 轻载 | G32: 79.79 | H32: 否 | I32: 仁和镇瓦房村 | K32: 100
A33: 31 | B33: 大山脚台变 | C33: 10kV | D33: 9.67 | E33: 30.66 | F33: 轻载 | G33: 256.09 | H33: 否 | I33: 仁和镇瓦房村 | K33: 315
A34: 32 | B34: 瓦房村2#台变 | C34: 10kV | D34: 12.05 | E34: 31.78 | F34: 轻载 | G34: 249.34 | H34: 否 | I34: 仁和镇瓦房村 | K34: 315
A35: 33 | B35: 瓦房村1#台变 | C35: 10kV | D35: 8.7 | E35: 26.76 | F35: 轻载 | G35: 258.84 | H35: 否 | I35: 仁和镇瓦房村 | K35: 315
A36: 34 | B36: 石坝台变 | C36: 10kV | D36: 16.38 | E36: 35.27 | F36: 轻载 | G36: 120.41 | H36: 否 | I36: 仁和镇热水塘村 | K36: 160
A37: 35 | B37: 田坝心台变 | C37: 10kV | D37: 8.81 | E37: 28.18 | F37: 轻载 | G37: 131.31 | H37: 否 | I37: 仁和镇热水塘村 | K37: 160
A38: 36 | B38: 卖糖村台变 | C38: 10kV | D38: 6.32 | E38: 21.67 | F38: 轻载 | G38: 168.62 | H38: 否 | I38: 仁和镇热水塘村 | K38: 200
A39: 37 | B39: 龙家村台变 | C39: 10kV | D39: 9.89 | E39: 27.9 | F39: 轻载 | G39: 255.46 | H39: 否 | I39: 仁和镇热水塘村 | K39: 315
A40: 38 | B40: 小河边2#台变 | C40: 10kV | D40: 10.55 | E40: 45.46 | F40: 轻载 | G40: 253.59 | H40: 否 | I40: 仁和镇热水塘村 | K40: 315
A41: 39 | B41: 小河边1#台变 | C41: 10kV | D41: 8.57 | E41: 23.69 | F41: 轻载 | G41: 259.20 | H41: 否 | I41: 仁和镇热水塘村 | K41: 315
A42: 40 | B42: 李家村2#台变 | C42: 10kV | D42: 13.93 | E42: 45.29 | F42: 轻载 | G42: 193.66 | H42: 否 | I42: 仁和镇热水塘村 | K42: 250
A43: 41 | B43: 李家村1#台变 | C43: 10kV | D43: 10.55 | E43: 33.68 | F43: 轻载 | G43: 128.81 | H43: 否 | I43: 仁和镇热水塘村 | K43: 160
A44: 42 | B44: 下角里2#台变 | C44: 10kV | D44: 13.16 | E44: 33.06 | F44: 轻载 | G44: 246.19 | H44: 否 | I44: 甸阳镇角里村 | K44: 315
A45: 43 | B45: 下角里1#台变 | C45: 10kV | D45: 10.4 | E45: 30.25 | F45: 轻载 | G45: 161.28 | H45: 否 | I45: 甸阳镇角里村 | K45: 200
A46: 44 | B46: 河湾子台变 | C46: 10kV | D46: 13.68 | E46: 34.22 | F46: 轻载 | G46: 77.69 | H46: 否 | I46: 仁和镇瓦房村 | K46: 100
A47: 45 | B47: 大麦地坪子台变 | C47: 10kV | D47: 2.61 | E47: 47.43 | F47: 轻载 | G47: 26.30 | H47: 否 | I47: 仁和镇茨菇村 | K47: 30
A48: 46 | B48: 坡头台变 | C48: 10kV | D48: 14.66 | E48: 53.18 | F48: 轻载 | G48: 76.81 | H48: 否 | I48: 仁和镇茨菇村 | K48: 100
A49: 47 | B49: 茨菇台变 | C49: 10kV | D49: 13.23 | E49: 48.08 | F49: 轻载 | G49: 39.05 | H49: 否 | I49: 仁和镇茨菇村 | K49: 50
A50: 48 | B50: 坟山台变 | C50: 10kV | D50: 7.81 | E50: 38.33 | F50: 轻载 | G50: 82.97 | H50: 否 | I50: 仁和镇茨菇村 | K50: 100
A51: 49 | B51: 坡脚2#台变 | C51: 10kV | D51: 0.04 | E51: 5.14 | F51: 轻载 | G51: 26.99 | H51: 否 | I51: 仁和镇茨菇村 | K51: 30
A52: 50 | B52: 坡脚1#台变 | C52: 10kV | D52: 10.51 | E52: 48.88 | F52: 轻载 | G52: 40.27 | H52: 否 | I52: 仁和镇茨菇村 | K52: 50
A53: 51 | B53: 河一河二台变 | C53: 10kV | D53: 5.2 | E53: 23.56 | F53: 轻载 | G53: 68.26 | H53: 否 | I53: 仁和镇菠萝登村 | K53: 80
A54: 52 | B54: 大明邑台变 | C54: 10kV | D54: 8.06 | E54: 37.17 | F54: 轻载 | G54: 103.43 | H54: 否 | I54: 仁和镇菠萝登村 | K54: 125
A55: 53 | B55: 腰子塘台变 | C55: 10kV | D55: 9.04 | E55: 36.2 | F55: 轻载 | G55: 65.49 | H55: 否 | I55: 仁和镇菠萝登村 | K55: 80
A56: 54 | B56: 萝登烤炉群台变 | C56: 10kV | D56: 0.12 | E56: 4.07 | F56: 轻载 | G56: 112.37 | H56: 否 | I56: 仁和镇菠萝登村 | K56: 125
A57: 55 | B57: 菠萝登台变 | C57: 10kV | D57: 7.71 | E57: 27.51 | F57: 轻载 | G57: 166.12 | H57: 否 | I57: 仁和镇菠萝登村 | K57: 200
A58: 56 | B58: 打佰故台变 | C58: 10kV | D58: 7.6 | E58: 33.23 | F58: 轻载 | G58: 103.95 | H58: 否 | I58: 仁和镇菠萝登村 | K58: 125
A59: 57 | B59: 石头路台变 | C59: 10kV | D59: 5.8 | E59: 20.94 | F59: 轻载 | G59: 105.98 | H59: 否 | I59: 仁和镇菠萝登村 | K59: 125
A60: 58 | B60: 寺登台变 | C60: 10kV | D60: 8.32 | E60: 33.18 | F60: 轻载 | G60: 82.51 | H60: 否 | I60: 仁和镇菠萝登村 | K60: 100
A61: 59 | B61: 肖家台变 | C61: 10kV | D61: 9.05 | E61: 49.21 | F61: 轻载 | G61: 65.48 | H61: 否 | I61: 仁和镇菠萝登村 | K61: 80
A62: 60 | B62: 吃水洞台变 | C62: 10kV | D62: 9.52 | E62: 37.64 | F62: 轻载 | G62: 130.29 | H62: 否 | I62: 仁和镇丛杆村 | K62: 160
A63: 61 | B63: 大寨子台变 | C63: 10kV | D63: 11.73 | E63: 42.98 | F63: 轻载 | G63: 99.30 | H63: 否 | I63: 仁和镇丛杆村 | K63: 125
A64: 62 | B64: 丛杆台变 | C64: 10kV | D64: 7.87 | E64: 41.01 | F64: 轻载 | G64: 82.92 | H64: 否 | I64: 仁和镇丛杆村 | K64: 100
A65: 63 | B65: 梨树脚台变 | C65: 10kV | D65: 10.57 | E65: 37.88 | F65: 轻载 | G65: 100.61 | H65: 否 | I65: 仁和镇丛杆村 | K65: 125
A66: 64 | B66: 联合台变 | C66: 10kV | D66: 22.86 | E66: 36.9 | F66: 轻载 | G66: 69.43 | H66: 否 | I66: 仁和镇杨家山村 | K66: 100
A67: 65 | B67: 黑箐台变 | C67: 10kV | D67: 3.37 | E67: 22.49 | F67: 轻载 | G67: =(K67-K67*D67/100)*0.9 -> 108.71 | H67: 否 | I67: 仁和镇杨家山村 | K67: 125
A68: 66 | B68: 风吹山台变 | C68: 10kV | D68: 9.55 | E68: 49.36 | F68: 轻载 | G68: 24.42 | H68: 否 | I68: 仁和镇杨家山村 | K68: 30
A69: 67 | B69: 权头台变 | C69: 10kV | D69: 8.21 | E69: 30.38 | F69: 轻载 | G69: 132.18 | H69: 否 | I69: 仁和镇杨家山村 | K69: 160
A70: 68 | B70: 杨家山台变 | C70: 10kV | D70: 9.97 | E70: 29.28 | F70: 轻载 | G70: 255.24 | H70: 否 | I70: 仁和镇杨家山村 | K70: 315
A71: 69 | B71: 李家寺台变 | C71: 10kV | D71: 14.36 | E71: 38.82 | F71: 轻载 | G71: 242.79 | H71: 否 | I71: 仁和镇杨家山村 | K71: 315
A72: 70 | B72: 伙头村台变 | C72: 10kV | D72: 8.93 | E72: 33.4 | F72: 轻载 | G72: 81.96 | H72: 否 | I72: 仁和镇杨家山村 | K72: 100
A73: 71 | B73: 小满田台变 | C73: 10kV | D73: 10 | E73: 55.71 | F73: 轻载 | G73: 40.50 | H73: 否 | I73: 仁和镇杨家山村 | K73: 50
A74: 72 | B74: 田基台变 | C74: 10kV | D74: 5.25 | E74: 19.45 | F74: 轻载 | G74: 213.19 | H74: 否 | I74: 仁和镇杨家山村 | K74: 250
A75: 73 | B75: 梳匠台变 | C75: 10kV | D75: 4.83 | E75: 20.2 | F75: 轻载 | G75: 85.65 | H75: 否 | I75: 仁和镇杨家山村 | K75: 100
A76: 74 | B76: 王献山台变 | C76: 10kV | D76: 3.21 | E76: 20.13 | F76: 轻载 | G76: 69.69 | H76: 否 | I76: 仁和镇菠萝登村 | K76: 80
A77: 75 | B77: 上山后台变 | C77: 10kV | D77: 2.31 | E77: 22.22 | F77: 轻载 | G77: 140.67 | H77: 否 | I77: 仁和镇交邑村 | K77: 160
A78: 76 | B78: 交邑山台变 | C78: 10kV | D78: 3.72 | E78: 22.45 | F78: 轻载 | G78: 173.30 | H78: 否 | I78: 仁和镇交邑村 | K78: 200
A79: 77 | B79: 交邑一社台变 | C79: 10kV | D79: 3.87 | E79: 18.07 | F79: 轻载 | G79: 216.29 | H79: 否 | I79: 仁和镇交邑村 | K79: 250
A80: 78 | B80: 大山凹台变 | C80: 10kV | D80: 5.76 | E80: 22.41 | F80: 轻载 | G80: 84.82 | H80: 否 | I80: 仁和镇复兴村 | K80: 100
A81: 79 | B81: 鲁寨台变 | C81: 10kV | D81: 6.04 | E81: 32.92 | F81: 轻载 | G81: 135.30 | H81: 否 | I81: 仁和镇复兴村 | K81: 160
A82: 80 | B82: 翠岩寺台变 | C82: 10kV | D82: 10.75 | E82: 35.05 | F82: 轻载 | G82: 200.81 | H82: 否 | I82: 仁和镇复兴村 | K82: 250
A83: 81 | B83: 小东山台变 | C83: 10kV | D83: 11.15 | E83: 30.69 | F83: 轻载 | G83: 251.89 | H83: 否 | I83: 仁和镇复兴村 | K83: 315
A84: 82 | B84: 小勒平台变 | C84: 10kV | D84: 14.76 | E84: 44.86 | F84: 轻载 | G84: 241.66 | H84: 否 | I84: 仁和镇勒平村 | K84: 315
A85: 83 | B85: 下马村台变 | C85: 10kV | D85: 16.46 | E85: 39.64 | F85: 轻载 | G85: 236.84 | H85: 否 | I85: 仁和镇勒平村 | K85: 315
A86: 84 | B86: 土马村台变 | C86: 10kV | D86: 6.7 | E86: 29.31 | F86: 轻载 | G86: 264.51 | H86: 否 | I86: 仁和镇勒平村 | K86: 315
A87: 85 | B87: 白鹤村台变 | C87: 10kV | D87: 9.92 | E87: 25.87 | F87: 轻载 | G87: 255.38 | H87: 否 | I87: 仁和镇复兴村 | K87: 315
A88: 86 | B88: 恒基地产4#台变 | C88: 10kV | D88: 7.71 | E88: 18.14 | F88: 轻载 | G88: 664.49 | H88: 否 | I88: 仁和镇仁和村 | K88: 800
A89: 87 | B89: 恒基地产3#台变 | C89: 10kV | D89: 4.51 | E89: 11.84 | F89: 轻载 | G89: 687.53 | H89: 否 | I89: 仁和镇仁和村 | K89: 800
A90: 88 | B90: 恒基地产2#台变 | C90: 10kV | D90: 8.61 | E90: 14.85 | F90: 轻载 | G90: 658.01 | H90: 否 | I90: 仁和镇仁和村 | K90: 800
A91: 89 | B91: 恒基地产1#台变 | C91: 10kV | D91: 9.17 | E91: 19.28 | F91: 轻载 | G91: 653.98 | H91: 否 | I91: 仁和镇仁和村 | K91: 800
A92: 90 | B92: 街西3#台变 | C92: 10kV | D92: 22.55 | E92: 43.52 | F92: 轻载 | G92: 139.41 | H92: 否 | I92: 仁和镇仁和村 | K92: 200
A93: 91 | B93: 街西2#台变 | C93: 10kV | D93: 16.55 | E93: 34.7 | F93: 轻载 | G93: 236.58 | H93: 否 | I93: 仁和镇仁和村 | K93: 315
A94: 92 | B94: 西坪南台变 | C94: 10kV | D94: 13.78 | E94: 37.32 | F94: 轻载 | G94: 244.43 | H94: 否 | I94: 仁和镇瓦房村 | K94: 315
A95: 93 | B95: 西坪北台变 | C95: 10kV | D95: 8.19 | E95: 24.99 | F95: 轻载 | G95: 260.28 | H95: 否 | I95: 仁和镇瓦房村 | K95: 315
A96: 94 | B96: 沙沟南台变 | C96: 10kV | D96: 11.33 | E96: 40.18 | F96: 轻载 | G96: 199.51 | H96: 否 | I96: 仁和镇仁和村 | K96: 250
A97: 95 | B97: 小马桥台变 | C97: 10kV | D97: 11.3 | E97: 37.81 | F97: 轻载 | G97: 199.58 | H97: 否 | I97: 保场村土官社村 | K97: 250
A98: 96 | B98: 代家凹台变 | C98: 10kV | D98: 8.48 | E98: 24.36 | F98: 轻载 | G98: 259.46 | H98: 否 | I98: 保场村土官社村 | K98: 315
A99: 97 | B99: 土官村台变 | C99: 10kV | D99: 16.08 | E99: 47.14 | F99: 轻载 | G99: 237.91 | H99: 否 | I99: 保场村土官社村 | K99: 315
A100: 98 | B100: 李家村台变 | C100: 10kV | D100: 9.38 | E100: 25.69 | F100: 轻载 | G100: 203.90 | H100: 否 | I100: 保场村土官社村 | K100: 250
A101: 99 | B101: 迎蒋村北台变 | C101: 10kV | D101: 4.22 | E101: 18.98 | F101: 轻载 | G101: 172.40 | H101: 否 | I101: 保场村张家社村 | K101: 200
A102: 100 | B102: 永福2#台变 | C102: 10kV | D102: 8.75 | E102: 20.93 | F102: 轻载 | G102: 205.31 | H102: 否 | I102: 由旺镇永福村委 | K102: 250
A103: 101 | B103: 磨石大寨台变 | C103: 10kV | D103: 8.67 | E103: 53.08 | F103: 轻载 | G103: 65.76 | H103: 否 | I103: 仁和镇银滚坡村 | K103: 80
A104: 102 | B104: 王家小寨台变 | C104: 10kV | D104: 10.82 | E104: 37.02 | F104: 轻载 | G104: 80.26 | H104: 否 | I104: 由旺镇王家村委 | K104: 100
A105: 103 | B105: 河外山台变 | C105: 10kV | D105: 6.27 | E105: 26.34 | F105: 轻载 | G105: 84.36 | H105: 否 | I105: 由旺镇王家村委 | K105: 100
A106: 104 | B106: 大河口2#台变 | C106: 10kV | D106: 11.31 | E106: 75.78 | F106: 轻载 | G106: 159.64 | H106: 否 | I106: 保场村菠萝社村 | K106: 200
A107: 105 | B107: 多板山台变 | C107: 10kV | D107: 4.51 | E107: 40.7 | F107: 轻载 | G107: 42.97 | H107: 否 | I107: 由旺镇王家村委 | K107: 50
A108: 106 | B108: 上桃子寨台变 | C108: 10kV | D108: 24.74 | E108: 30.4 | F108: 轻载 | G108: 135.47 | H108: 否 | I108: 由旺镇王家村委 | K108: 200
A109: 107 | B109: 杨家村2#台变 | C109: 10kV | D109: 5.9 | E109: 20.62 | F109: 轻载 | G109: 266.77 | H109: 否 | I109: 保场村菠萝社村 | K109: 315
A110: 108 | B110: 小芦子箐台变 | C110: 10kV | D110: 8.07 | E110: 36.37 | F110: 轻载 | G110: 103.42 | H110: 否 | I110: 仁和镇银滚坡村 | K110: 125
A111: 109 | B111: 乌头水台变 | C111: 10kV | D111: 6.09 | E111: 24.13 | F111: 轻载 | G111: 169.04 | H111: 否 | I111: 仁和镇金鸭塘村 | K111: 200
A112: 110 | B112: 磨石沟台变 | C112: 10kV | D112: 8.56 | E112: 39.13 | F112: 轻载 | G112: 41.15 | H112: 否 | I112: 仁和镇银滚坡村 | K112: 50
A113: 111 | B113: 由旺小高层 | C113: 10kV | D113: 2.5 | E113: 8.45 | F113: 轻载 | G113: 552.83 | H113: 否 | I113: 由旺镇杨家村委 | K113: 630
A114: 112 | B114: 落白寨台变 | C114: 10kV | D114: 10.08 | E114: 36.95 | F114: 轻载 | G114: 101.16 | H114: 否 | I114: 保场村红谷村 | K114: 125
A115: 113 | B115: 排坊山台变 | C115: 10kV | D115: 2.9 | E115: 17.69 | F115: 轻载 | G115: 87.39 | H115: 否 | I115: 保场村红谷村 | K115: 100
A116: 114 | B116: 红谷田移民点台变 | C116: 10kV | D116: 11.12 | E116: 41.22 | F116: 轻载 | G116: 99.99 | H116: 否 | I116: 保场村红谷村 | K116: 125
A117: 115 | B117: 岩子寺台变 | C117: 10kV | D117: 11.7 | E117: 27.72 | F117: 轻载 | G117: 127.15 | H117: 否 | I117: 保场村查邑村 | K117: 160
A118: 116 | B118: 平街台变 | C118: 10kV | D118: 16.02 | E118: 117 | F118: 轻载 | G118: 151.16 | H118: 否 | I118: 保场村查邑村 | K118: 200
A119: 117 | B119: 查邑村2#台变 | C119: 10kV | D119: 7.48 | E119: 26.34 | F119: 轻载 | G119: 262.29 | H119: 否 | I119: 保场村查邑村 | K119: 315
A120: 118 | B120: 毛家村1#台变 | C120: 10kV | D120: 9.55 | E120: 29.04 | F120: 轻载 | G120: 203.51 | H120: 否 | I120: 保场村查邑村 | K120: 250
A121: 119 | B121: 银川安置房2#变 | C121: 10kV | D121: 1.73 | E121: 5.58 | F121: 轻载 | G121: 707.54 | H121: 否 | I121: 由旺镇银川村委 | K121: 800
A122: 120 | B122: 银川安置房1#变 | C122: 10kV | D122: 2.68 | E122: 10.25 | F122: 轻载 | G122: 700.70 | H122: 否 | I122: 由旺镇银川村委 | K122: 800
A123: 121 | B123: 昌和村安置房 | C123: 10kV | D123: 9.18 | E123: 25.21 | F123: 轻载 | G123: 326.95 | H123: 否 | I123: 仁和镇中和村 | K123: 400
A124: 122 | B124: 横沟1#台变 | C124: 10kV | D124: 12.35 | E124: 36.73 | F124: 轻载 | G124: 248.49 | H124: 否 | I124: 保场村五楼社村 | K124: 315
A125: 123 | B125: 四大庄南2#台变 | C125: 10kV | D125: 5.27 | E125: 19.2 | F125: 轻载 | G125: 268.56 | H125: 否 | I125: 保场村四大庄村 | K125: 315
A126: 124 | B126: 三家村 | C126: 10kV | D126: 4.88 | E126: 40.69 | F126: 轻载 | G126: 42.80 | H126: 否 | I126: 由旺镇大秧田村委 | K126: 50
A127: 125 | B127: 山尾巴台变 | C127: 10kV | D127: 16.77 | E127: 43.18 | F127: 轻载 | G127: 74.91 | H127: 否 | I127: 由旺镇大秧田村委 | K127: 100
A128: 126 | B128: 大秧田街 | C128: 10kV | D128: 8.04 | E128: 25.35 | F128: 轻载 | G128: 260.71 | H128: 否 | I128: 由旺镇大秧田村委 | K128: 315
A129: 127 | B129: 笔低2#台变 | C129: 10kV | D129: 3.89 | E129: 16.65 | F129: 轻载 | G129: 138.40 | H129: 否 | I129: 由旺镇大秧田村委 | K129: 160
A130: 128 | B130: 大谷场 | C130: 10kV | D130: 6.13 | E130: 49.39 | F130: 轻载 | G130: 42.24 | H130: 否 | I130: 由旺镇大秧田村委 | K130: 50
A131: 129 | B131: 牛汪塘2#台变 | C131: 10kV | D131: 6.92 | E131: 47.45 | F131: 轻载 | G131: =(K131-K131*D131/100)*0.9 -> 67.02 | H131: 否 | I131: 由旺镇大秧田村委 | K131: 80
A132: 130 | B132: 上村2#台变 | C132: 10kV | D132: 6.41 | E132: 27.58 | F132: 轻载 | G132: 210.58 | H132: 否 | I132: 由旺镇大秧田村委 | K132: 250
A133: 131 | B133: 大浪坝台变 | C133: 10kV | D133: 2.7 | E133: 17.71 | F133: 轻载 | G133: 43.79 | H133: 否 | I133: 由旺镇躲安村委 | K133: 50
A134: 132 | B134: 躲安3#台变 | C134: 10kV | D134: 4.26 | E134: 19.22 | F134: 轻载 | G134: 137.87 | H134: 否 | I134: 由旺镇躲安村委 | K134: 160
A135: 133 | B135: 躲安2#台变 | C135: 10kV | D135: 6.37 | E135: 23.12 | F135: 轻载 | G135: 265.44 | H135: 否 | I135: 由旺镇躲安村委 | K135: 315
A136: 134 | B136: 金厂桥 | C136: 10kV | D136: 1.84 | E136: 12.64 | F136: 轻载 | G136: 70.68 | H136: 否 | I136: 由旺镇躲安村委 | K136: 80
A137: 135 | B137: 合木树2#台变 | C137: 10kV | D137: 4.95 | E137: 18.14 | F137: 轻载 | G137: 136.87 | H137: 否 | I137: 由旺镇躲安村委 | K137: 160
A138: 136 | B138: 张家村2#台变 | C138: 10kV | D138: 9.35 | E138: 22.77 | F138: 轻载 | G138: 203.96 | H138: 否 | I138: 保场村张家社村 | K138: 250
A139: 137 | B139: 五楼山脚2#台变 | C139: 10kV | D139: 11.88 | E139: 34.41 | F139: 轻载 | G139: 198.27 | H139: 否 | I139: 保场村五楼社村 | K139: 250
A140: 138 | B140: 柿子园2#台变 | C140: 10kV | D140: 9.49 | E140: 25.64 | F140: 轻载 | G140: 203.65 | H140: 否 | I140: 保场村菠萝社村 | K140: 250
A141: 139 | B141: 上源珠2#台变 | C141: 10kV | D141: 12.47 | E141: 41.19 | F141: 轻载 | G141: 126.04 | H141: 否 | I141: 由旺镇源珠村委 | K141: 160
A142: 140 | B142: 下源珠2#台变 | C142: 10kV | D142: 10.44 | E142: 26.71 | F142: 轻载 | G142: 201.51 | H142: 否 | I142: 由旺镇源珠村委 | K142: 250
A143: 141 | B143: 羊毛村2#台变 | C143: 10kV | D143: 10.89 | E143: 33.5 | F143: 轻载 | G143: 200.50 | H143: 否 | I143: 保场村菠萝社村 | K143: 250
A144: 142 | B144: 苏家村2#台变 | C144: 10kV | D144: 15.23 | E144: 50.49 | F144: 轻载 | G144: 190.73 | H144: 否 | I144: 保场村苏家社村 | K144: 250
A145: 143 | B145: 保场山脚台变 | C145: 10kV | D145: 14.48 | E145: 34.44 | F145: 轻载 | G145: 242.45 | H145: 否 | I145: 保场村保场社村 | K145: 315
A146: 144 | B146: 苏家村1#台变 | C146: 10kV | D146: 13.06 | E146: 34.94 | F146: 轻载 | G146: 195.62 | H146: 否 | I146: 保场村苏家社村 | K146: 250
A147: 145 | B147: 杨辉村3#台变 | C147: 10kV | D147: 4.55 | E147: 62.57 | F147: 轻载 | G147: 214.76 | H147: 否 | I147: 保场村张家社村 | K147: 250
A148: 146 | B148: 杨辉村2#台变 | C148: 10kV | D148: 14.39 | E148: 31.98 | F148: 轻载 | G148: 192.62 | H148: 否 | I148: 保场村张家社村 | K148: 250
A149: 147 | B149: 东山坡2#台变 | C149: 10kV | D149: 12.76 | E149: 44.52 | F149: 轻载 | G149: 62.81 | H149: 否 | I149: 由旺镇坡脚村委 | K149: 80
A150: 148 | B150: 尹家庄2#台变 | C150: 10kV | D150: 15.51 | E150: 48.45 | F150: 轻载 | G150: 152.08 | H150: 否 | I150: 由旺镇坡脚村委 | K150: 200
A151: 149 | B151: 大村路东2#台变 | C151: 10kV | D151: 15.71 | E151: 52.67 | F151: 轻载 | G151: 37.93 | H151: 否 | I151: 由旺镇永福村委 | K151: 50
A152: 150 | B152: 沙墩3#台变 | C152: 10kV | D152: 9.86 | E152: 28.31 | F152: 轻载 | G152: 162.25 | H152: 否 | I152: 仁和镇中和村 | K152: 200
A153: 151 | B153: 沙墩2#台变 | C153: 10kV | D153: 14.77 | E153: 40.54 | F153: 轻载 | G153: 191.77 | H153: 否 | I153: 仁和镇中和村 | K153: 250
A154: 152 | B154: 沙墩1#台变 | C154: 10kV | D154: 10.97 | E154: 47.77 | F154: 轻载 | G154: 252.40 | H154: 否 | I154: 仁和镇中和村 | K154: 315
A155: 153 | B155: 菠萝村3#台变 | C155: 10kV | D155: 10.41 | E155: 34.07 | F155: 轻载 | G155: 201.58 | H155: 否 | I155: 保场村菠萝社村 | K155: 250
A156: 154 | B156: 高家田台变 | C156: 10kV | D156: 5.03 | E156: 19.15 | F156: 轻载 | G156: 85.47 | H156: 否 | I156: 由旺镇常村村委 | K156: 100
A157: 155 | B157: 土官2号台变 | C157: 10kV | D157: 13.04 | E157: 33 | F157: 轻载 | G157: 195.66 | H157: 否 | I157: 仁和镇中和村 | K157: 250
A158: 156 | B158: 昌和村2号台变 | C158: 10kV | D158: 14.94 | E158: 41.35 | F158: 轻载 | G158: 122.49 | H158: 否 | I158: 仁和镇中和村 | K158: 160
A159: 157 | B159: 大河口1#台变 | C159: 10kV | D159: 5.69 | E159: 21.59 | F159: 轻载 | G159: 169.76 | H159: 否 | I159: 保场村菠萝社村 | K159: 200
A160: 158 | B160: 摩老邓1#台变 | C160: 10kV | D160: 8.43 | E160: 23.86 | F160: 轻载 | G160: 206.03 | H160: 否 | I160: 由旺镇华兴村委 | K160: 250
A161: 159 | B161: 土官1号台变 | C161: 10kV | D161: 9.91 | E161: 27.99 | F161: 轻载 | G161: 255.41 | H161: 否 | I161: 仁和镇中和村 | K161: 315
A162: 160 | B162: 昌和村1号台变 | C162: 10kV | D162: 18.76 | E162: 42.19 | F162: 轻载 | G162: 146.23 | H162: 否 | I162: 仁和镇中和村 | K162: 200
A163: 161 | B163: 新和台变 | C163: 10kV | D163: 4.71 | E163: 21.36 | F163: 轻载 | G163: 214.40 | H163: 否 | I163: 仁和镇中和村 | K163: 250
A164: 162 | B164: 半坡台变 | C164: 10kV | D164: 6.22 | E164: 33.33 | F164: 轻载 | G164: 42.20 | H164: 否 | I164: 仁和镇中和村 | K164: 50
A165: 163 | B165: 徐家坡2#台变 | C165: 10kV | D165: 4.6 | E165: 32.1 | F165: 轻载 | G165: 42.93 | H165: 否 | I165: 仁和镇仁和村 | K165: 50
A166: 164 | B166: 徐家坡1#台变 | C166: 10kV | D166: 5.63 | E166: 20.09 | F166: 轻载 | G166: 135.89 | H166: 否 | I166: 仁和镇仁和村 | K166: 160
A167: 165 | B167: 蒋家松林台变 | C167: 10kV | D167: 7 | E167: 24.29 | F167: 轻载 | G167: 83.70 | H167: 否 | I167: 仁和镇仁和村 | K167: 100
A168: 166 | B168: 火石坡烤炉群台变 | C168: 10kV | D168: 2.12 | E168: 150.92 | F168: 轻载 | G168: 26.43 | H168: 否 | I168: 仁和镇仁和村 | K168: 30
A169: 167 | B169: 火石坡台变 | C169: 10kV | D169: 2.44 | E169: 11.42 | F169: 轻载 | G169: 87.80 | H169: 否 | I169: 仁和镇仁和村 | K169: 100
A170: 168 | B170: 大小水井烤炉群台变 | C170: 10kV | D170: 7.05 | E170: 38.49 | F170: 轻载 | G170: 104.57 | H170: 否 | I170: 仁和镇金鸭塘村 | K170: 125
A171: 169 | B171: 大元头台变 | C171: 10kV | D171: 8.12 | E171: 34.2 | F171: 轻载 | G171: 132.31 | H171: 否 | I171: 仁和镇金鸭塘村 | K171: 160
A172: 170 | B172: 金鸭塘台变 | C172: 10kV | D172: 8.38 | E172: 24.46 | F172: 轻载 | G172: 206.15 | H172: 否 | I172: 仁和镇金鸭塘村 | K172: 250
A173: 171 | B173: 浑水塘台变 | C173: 10kV | D173: 9.79 | E173: 38.65 | F173: 轻载 | G173: 81.19 | H173: 否 | I173: 仁和镇金鸭塘村 | K173: 100
A174: 172 | B174: 大小水井台变 | C174: 10kV | D174: 7.26 | E174: 24.54 | F174: 轻载 | G174: 104.33 | H174: 否 | I174: 仁和镇金鸭塘村 | K174: 125
A175: 173 | B175: 银滚坡台变 | C175: 10kV | D175: 11.28 | E175: 46.17 | F175: 轻载 | G175: 79.85 | H175: 否 | I175: 仁和镇银滚坡村 | K175: 100
A176: 174 | B176: 和平B台变 | C176: 10kV | D176: 4.57 | E176: 26.41 | F176: 轻载 | G176: 137.42 | H176: 否 | I176: 仁和镇银滚坡村 | K176: 160
A177: 175 | B177: 和平A台变 | C177: 10kV | D177: 4.48 | E177: 20.08 | F177: 轻载 | G177: 137.55 | H177: 否 | I177: 仁和镇银滚坡村 | K177: 160
A178: 176 | B178: 大芦子箐台变 | C178: 10kV | D178: 8.49 | E178: 35.04 | F178: 轻载 | G178: 131.77 | H178: 否 | I178: 仁和镇银滚坡村 | K178: 160
A179: 177 | B179: 沙沟北2#台变 | C179: 10kV | D179: 8.93 | E179: 28.12 | F179: 轻载 | G179: 131.14 | H179: 否 | I179: 仁和镇仁和村 | K179: 160
A180: 178 | B180: 沙沟北1#台变 | C180: 10kV | D180: 16.43 | E180: 50.55 | F180: 轻载 | G180: 236.92 | H180: 否 | I180: 仁和镇仁和村 | K180: 315
A181: 179 | B181: 上村1#台变 | C181: 10kV | D181: 6.79 | E181: 23 | F181: 轻载 | G181: 209.72 | H181: 否 | I181: 由旺镇大秧田村委 | K181: 250
A182: 180 | B182: 郭家寨台变 | C182: 10kV | D182: 8.64 | E182: 35.01 | F182: 轻载 | G182: 131.56 | H182: 否 | I182: 由旺镇大秧田村委 | K182: 160
A183: 181 | B183: 文化村台变 | C183: 10kV | D183: 8.66 | E183: 26.68 | F183: 轻载 | G183: 164.41 | H183: 否 | I183: 由旺镇大秧田村委 | K183: 200
A184: 182 | B184: 大秧田台变 | C184: 10kV | D184: 3.76 | E184: 13.87 | F184: 轻载 | G184: 216.54 | H184: 否 | I184: 由旺镇大秧田村委 | K184: 250
A185: 183 | B185: 松林台变 | C185: 10kV | D185: 3.3 | E185: 21.82 | F185: 轻载 | G185: 174.06 | H185: 否 | I185: 由旺镇大秧田村委 | K185: 200
A186: 184 | B186: 金厂台变 | C186: 10kV | D186: 5.87 | E186: 21.59 | F186: 轻载 | G186: 169.43 | H186: 否 | I186: 由旺镇岚峰村委 | K186: 200
A187: 185 | B187: 岚峰台变 | C187: 10kV | D187: 8.28 | E187: 38.02 | F187: 轻载 | G187: 165.10 | H187: 否 | I187: 由旺镇岚峰村委 | K187: 200
A188: 186 | B188: 笔头台变 | C188: 10kV | D188: 5.48 | E188: 30.53 | F188: 轻载 | G188: 170.14 | H188: 否 | I188: 由旺镇岚峰村委 | K188: 200
A189: 187 | B189: 笔低1#台变 | C189: 10kV | D189: 7.79 | E189: 25.37 | F189: 轻载 | G189: 165.98 | H189: 否 | I189: 由旺镇大秧田村委 | K189: 200
A190: 188 | B190: 牛汪塘1#台变 | C190: 10kV | D190: 5.08 | E190: 18.47 | F190: 轻载 | G190: 269.10 | H190: 否 | I190: 由旺镇大秧田村委 | K190: 315
A191: 189 | B191: 茅草地台变 | C191: 10kV | D191: 5.68 | E191: 55.6 | F191: 轻载 | G191: 67.91 | H191: 否 | I191: 由旺镇岚峰村委 | K191: 80
A192: 190 | B192: 小水井台变 | C192: 10kV | D192: 1.56 | E192: 16.89 | F192: 轻载 | G192: 70.88 | H192: 否 | I192: 由旺镇躲安村委 | K192: 80
A193: 191 | B193: 合木树1#台变 | C193: 10kV | D193: 9.93 | E193: 34.79 | F193: 轻载 | G193: 129.70 | H193: 否 | I193: 由旺镇躲安村委 | K193: 160
A194: 192 | B194: 躲安1#台变 | C194: 10kV | D194: 5.49 | E194: 16.85 | F194: 轻载 | G194: 170.12 | H194: 否 | I194: 由旺镇躲安村委 | K194: 200
A195: 193 | B195: 回龙台变 | C195: 10kV | D195: 5.24 | E195: 18.01 | F195: 轻载 | G195: =(K195-K195*D195/100)*0.9 -> 268.64 | H195: 否 | I195: 由旺镇躲安村委 | K195: 315
A196: 194 | B196: 王家大寨台变 | C196: 10kV | D196: 6.68 | E196: 30.66 | F196: 轻载 | G196: 167.98 | H196: 否 | I196: 由旺镇王家村委 | K196: 200
A197: 195 | B197: 芭蕉林台变 | C197: 10kV | D197: 14.07 | E197: 35.65 | F197: 轻载 | G197: 154.67 | H197: 否 | I197: 由旺镇王家村委 | K197: 200
A198: 196 | B198: 转龙台变 | C198: 10kV | D198: 23.89 | E198: 27.92 | F198: 轻载 | G198: 68.50 | H198: 否 | I198: 由旺镇王家村委 | K198: 100
A199: 197 | B199: 大山脚台变 | C199: 10kV | D199: 9.98 | E199: 38.87 | F199: 轻载 | G199: 129.63 | H199: 否 | I199: 由旺镇躲安村委 | K199: 160
A200: 198 | B200: 王家台变 | C200: 10kV | D200: 8.99 | E200: 36.4 | F200: 轻载 | G200: 81.91 | H200: 否 | I200: 由旺镇王家村委 | K200: 100
... 1337 more rows
